[Event "LEM Niedersachsen-Meister 2025"]
[Site "Verden"]
[Date "2025.01.02"]
[Round "2.6"]
[White "Plischki, Sebastian"]
[Black "Drygala, Lars"]
[Result "1/2-1/2"]
[ECO "D63"]
[WhiteElo "2323"]
[BlackElo "2067"]
[Annotator "TA"]
[PlyCount "118"]
[EventDate "2024.12.27"]
[EventType "swiss"]
[EventCountry "GER"]
[SourceTitle "playchess.com"]
[Source "ChessBase"]
[SourceQuality "1"]
[TimeControl "40/5400+30:1800+30"]

{[%evp 14,118,33,22,35,4,0,0,0,-10,-14,-32,0,-27,-22,-16,-32,-28,0,-13,-15,-7,-15,-35,0,0,0,0,86,-230,-227,-228,-236,-274,-295,-264,-185,-234,-141,-179,-172,-188,-183,-183,-171,-294,-177,-226,-96,-222,-235,-222,-229,-206,-213,-415,-419,-531,-537,-435,-203,-29970,-29969,-1114,-450,-1071,-1034,-1069,-1068,-1054,-1010,-1027,-1034,-979,-309,-276,-221,-208,-162,-162,-162,-1015,-1009,-809,-8,-811,-8,-8,-1,-8,0,-8,-8,-8,-8,-8,-8,-8,-8,-8,0,-8,-8,-8,0,-8,-8]} 1. d4 {[%emt 0:00:04]} Nf6 {[%emt 0:00:08]} 2. c4 {[%emt 0:00:12]} e6 {[%emt 0:00:09]} 3. Nc3 {[%emt 0:00:18]} d5 {[%emt 0:00:19]} 4. Bg5 {[%emt 0:00:23]} Be7 {[%emt 0:00:14]} 5. e3 {[%emt 0:00:06][%cal Be2e3,Be3e4,Be4e5][%mdl 32]} O-O {[%emt 0:00:12]} 6. Nf3 {[%emt 0:00:09]} Nbd7 {[%emt 0:00:54]} 7. Rc1 {[%emt 0:00:33]} dxc4 {[%emt 0:01:57]} 8. Bxc4 {[%emt 0:00:11]} b6 {[%emt 0:00:10]} 9. e4 {[%emt 0:03:51]} Bb7 {[%emt 0:01:40]} 10. e5 {[%emt 0:02:14]} Ne4 {[%emt 0:01:19]} 11. Bxe7 {[%emt 0:00:43]} Qxe7 {[%emt 0:00:14]} 12. O-O {[%emt 0:00:39]} Rfd8 {[%emt 0:08:19]} 13. Qe2 {[%emt 0:06:15]} Nxc3 {[%emt 0:03:31]} 14. Rxc3 {[%emt 0:00:09]} c5 {[%emt 0:00:25]} 15. Bd3 {[%emt 0:27:30]} cxd4 {[%emt 0:07:23]} (15... h6 {simplifies} 16. Be4 cxd4 17. Nxd4 Bxe4 18. Qxe4 Nc5) 16. Rc7 {[%emt 0:01:33]} Bxf3 {[%emt 0:16:37]} 17. Qxf3 {[%emt 0:01:27]} Rac8 {[%emt 0:00:36]} 18. Rxa7 {[%emt 0:10:30]} Qg5 {[%emt 0:07:49]} 19. Qe4 {[%emt 0:01:25]} Qh5 {[%emt 0:02:32]} 20. g4 {[%emt 0:06:13]} (20. Qxd4 $2 Nxe5 $19) 20... Qh3 {[%emt 0:03:24]} (20... Qg6 $11 {keeps the balance.} 21. Qxd4 Qg5 22. Rxd7 Rxd7 23. Qxd7 Qxg4+ 24. Kh1 Qf3+ 25. Kg1 Qg4+ 26. Kh1 Qf3+ 27. Kg1 Qg4+) 21. b4 $2 {[%emt 0:00:45][%mdl 8192] [#] White is more active.} (21. Ba6 $1 $16 {[%cal Ra6c8] stays on course.} Rb8 (21... Nc5 $2 22. Qf4 $18) 22. Bb5 (22. Qxd4 Nf6 $11)) 21... Nxe5 $1 $19 {[%emt 0:02:18][%mdl 512]} 22. Qxe5 {[%emt 0:11:55]} Qxd3 {[%emt 0:00:07]} 23. Qf4 {[%emt 0:00:26]} Qg6 {[%emt 0:01:09]} 24. Rd1 {[%emt 0:00:57]} e5 {[%emt 0:08:32]} 25. Qf3 {[%emt 0:01:53]} (25. Qf5 $142) 25... Rc3 {[%emt 0:04:24]} 26. Qf5 {[%emt 0:00:16]} Qxf5 {[%emt 0:02:26]} 27. gxf5 {[%emt 0:00:05][%mdl 4096] Endgame. KRR-KRR} h5 {[%emt 0:02:27]} 28. Kg2 {[%emt 0:01:59]} h4 {[%emt 0:00:39]} 29. h3 {[%emt 0:00:48]} (29. a4 {might work better.}) 29... Kf8 {[%emt 0:02:14]} 30. a4 {[%emt 0:01:02]} (30. Rb7 $142) 30... e4 {[%emt 0:04:39]} (30... d3 $1 $19 {is more deadly. And now ...d2 would win.} 31. a5 bxa5 32. Rxa5 e4) 31. a5 {[%emt 0:02:54]} (31. Re1 $17 {only move.}) 31... bxa5 {[%emt 0:00:07]} 32. bxa5 {[%emt 0:00:05]} Rc2 {[%emt 0:01:39]} 33. Kf1 {[%emt 0:04:44]} Rd5 {[%emt 0:00:41][%cal Od4d3] aiming for ...d3!} 34. Rb1 $2 {[%emt 0:06:27]} (34. Re1 e3 (34... Rxf5 35. Ra8+ Ke7 36. Rxe4+ Kf6 37. Ra6+ Kg5 38. Rg4+ Kh5 39. Rxg7 $15) 35. fxe3) 34... Kg8 $1 {[%emt 0:00:10]} (34... Rxf5 35. Rb8+) 35. Rb8+ {[%emt 0:00:18]} Kh7 {[%emt 0:00:05] ...e3 would now be deadly.} 36. Rxf7 {[%emt 0:00:06]} e3 {[%emt 0:00:54]} (36... Rxa5 37. f6 Kg6 38. Rxg7+ (38. fxg7 $2 Rc1+ 39. Kg2 Rg5+ 40. Kh2 Kxf7 $19) 38... Kxf6 39. Rgg8 $17) (36... d3 $142 {[%cal Od3d2]} 37. Rb1 Rxa5 (37... d2 38. Rd1 $11)) 37. fxe3 $2 {[%emt 0:02:34]} (37. f6 $19 Rxf2+ 38. Ke1 Rxf6 (38... Rxa5 39. Rxg7+ Kh6 40. Rh8#) 39. Rxf6 gxf6 40. a6) 37... dxe3 {[%emt 0:00:23][%cal Rd5d1]} 38. Rb1 {[%emt 0:00:15]} Rxa5 {[%emt 0:01:28]} (38... Rh2 $142 {[%cal Od5d2]} 39. f6 Rh1+ (39... Rxa5 40. Rxg7+ Kh6 41. Kg1 $11) 40. Ke2 Rxb1 41. Rxg7+ Kh6) 39. Re1 {[%emt 0:04:47]} (39. f6 $142 Kg6 40. Rxg7+ Kxf6 41. Rg8) 39... Rh2 {[%emt 0:01:31]} 40. Kg1 {[%emt 0:01:06]} Rxh3 {[%emt 0:00:09]} 41. Kg2 {[%emt 0:10:37]} Rg3+ {[%emt 0:00:09]} 42. Kh2 {[%emt 0:00:01]} Ra2+ {[%emt 0:01:18]} 43. Kh1 {[%emt 0:00:01]} Rgg2 $2 {[%emt 0:12:08]} (43... Rf2 {( -> ...e2)} 44. Re7 Rff3 (44... Rxf5 $2 45. Re4 $19)) 44. Rxe3 {[%emt 0:02:12]} Rgc2 {[%emt 0:00:10]} 45. Rfe7 {[%emt 0:02:53]} Kg8 {[%emt 0:01:34]} 46. R7e4 {[%emt 0:08:46][%cal Oe4g4]} Kf7 $1 {[%emt 0:00:45]} 47. Rg4 $2 {[%emt 0:05:49]} (47. Re7+ Kf6 48. R7e6+ Kxf5 49. R3e5+ Kf4 50. Re4+ Kf3 51. Re3+ Kf2 52. Rb3) 47... Rc1+ {[%emt 0:02:26]} 48. Rg1 {[%emt 0:00:08] [#]} Rxg1+ $1 {[%emt 0:00:13]} 49. Kxg1 {[%emt 0:00:05] [#] KR-KR} Kf6 $2 {[%emt 0:00:04]} (49... Ra4 $1 $19 50. Rf3 Kf6) 50. Re4 $11 {[%emt 0:00:51] The position is equal.} Kg5 {[%emt 0:00:19]} ({Much less strong is} 50... Kxf5 51. Rxh4 Kg5 52. Rd4 $17) 51. Re7 {[%emt 0:00:14]} Kf6 {[%emt 0:01:03]} 52. Re4 {[%emt 0:00:06]} h3 {[%emt 0:00:41]} (52... Kxf5 {simplifies} 53. Rxh4 g5 54. Rh3 Kf4) 53. Re3 {[%emt 0:04:09]} Rg2+ {[%emt 0:05:15]} (53... Kxf5 {simplifies} 54. Rxh3 g5 55. Rf3+ Kg4) 54. Kh1 {[%emt 0:00:26]} Rg4 {[%emt 0:00:19]} ({But not} 54... Kxf5 55. Rxh3 Re2 56. Ra3 $17) 55. Rxh3 {[%emt 0:00:48]} Kxf5 {[%emt 0:00:20]} 56. Ra3 {[%emt 0:00:06]} g5 {[%emt 0:00:18]} 57. Rb3 {[%emt 0:00:25]} Kg6 {[%emt 0:00:18]} 58. Ra3 {[%emt 0:00:09]} Kh5 {[%emt 0:00:04]} 59. Kh2 {[%emt 0:00:27]} Rb4 {[%emt 0:00:09] And White is the lucky defender.   Weighted Error Value: White=0.62/Black=0.54.  Loses game:     	White=1     	---        Mistake:       	White=7     	Black=3      Inaccurate:     	White=2     	Black=5      OK:         	White=15    	Black=11     Best:        	White=4     	Black=3      Strong:       	---       	Black=2      Brilliant:      	---       	Black=1} 1/2-1/2

[Event "LEM Niedersachsen-Meister 2025"]
[Site "Verden"]
[Date "2025.01.02"]
[Round "2.7"]
[White "Peters, Tom"]
[Black "Stelmaszyk, Nico"]
[Result "0-1"]
[ECO "B45"]
[WhiteElo "2166"]
[BlackElo "2403"]
[Annotator "TA"]
[PlyCount "64"]
[EventDate "2024.12.27"]
[EventType "swiss"]
[EventCountry "GER"]
[SourceTitle "playchess.com"]
[Source "ChessBase"]
[SourceQuality "1"]
[TimeControl "40/5400+30:1800+30"]

{[%evp 17,64,18,9,17,37,0,17,-7,44,0,90,44,54,51,44,54,43,-56,-50,-154,-138,-118,-137,-137,-137,-244,-235,-252,0,-225,-267,-262,-247,-826,-906,-901,-899,-2108,-1758,-29987,-29988,-29988,-29989,-29989,-29990,-29990,-29991,-29995,-1119]} 1. e4 {[%emt 0:00:04]} c5 {[%emt 0:00:10]} 2. Nf3 {[%emt 0:00:25]} e6 {[%emt 0:00:08]} 3. d4 {[%emt 0:00:48]} cxd4 {[%emt 0:00:04]} 4. Nxd4 {[%emt 0:00:09]} Nf6 {[%emt 0:00:04]} 5. Nc3 {[%emt 0:00:25]} Nc6 {[%emt 0:00:06]} 6. Nxc6 {[%emt 0:05:46]} bxc6 {[%emt 0:00:05]} 7. e5 {[%emt 0:00:31]} Nd5 {[%emt 0:00:04]} 8. Ne4 {[%emt 0:00:06]} Qc7 {[%emt 0:00:04]} 9. f4 {[%emt 0:00:05]} f5 {[%emt 0:00:04]} (9... Qb6 {keeps more tension.} 10. c4 Bb4+ 11. Ke2 f5) 10. exf6 {[%emt 0:14:27]} gxf6 {[%emt 0:00:19][%cal Of8e7]} 11. a3 {[%emt 0:11:59]} Be7 $1 {[%emt 0:06:37][%cal Oc8b7]} 12. g3 {[%emt 0:21:24]} c5 {[%emt 0:10:04]} (12... h5 $11) 13. Bg2 {[%emt 0:06:30] c4 would now be deadly.} Ba6 {[%emt 0:03:52]} (13... h5 $1 $11 {keeps the balance.}) 14. Nc3 {[%emt 0:04:10]} (14. Qh5+ $16 Kd8 15. Bd2) 14... Nxc3 $14 {[%emt 0:20:11]} 15. Qh5+ {[%emt 0:04:56]} Kd8 {[%emt 0:00:08][%cal Oa6b7] Strongly threatening ...Bb7!.} 16. Bxa8 {[%emt 0:00:57]} Ne2 $1 {[%emt 0:00:51]} 17. Bf3 {[%emt 0:02:44]} (17. Kf2 $14) 17... Nd4 $36 {[%emt 0:01:56][%mdl 2048] Black has some pressure.} 18. Bd1 {[%emt 0:00:33]} ({White should play} 18. Kf2 $15) 18... Qc6 {[%emt 0:01:07]} 19. Rg1 {[%emt 0:02:17]} Qe4+ {[%emt 0:00:27]} 20. Kf2 {[%emt 0:03:11]} Nxc2 {[%emt 0:00:17] Black is much more active.} 21. Ra2 {[%emt 0:05:12]} (21. Rb1 $17) 21... Bc4 $19 {[%emt 0:17:14]} 22. b3 {[%emt 0:00:10] [#]} Bxb3 $2 {[%emt 0:00:12]} ({Better is} 22... Qd4+ $1 $19 23. Kg2 Bxb3 24. Rxc2 Qe4+ 25. Kf2 Bxc2) 23. Rb2 $2 {[%emt 0:07:18]} (23. Bxc2 $11 {and White is okay.} Bxc2 24. Re1) 23... Qd4+ {[%emt 0:04:45]} 24. Kg2 {[%emt 0:00:05]} Ne3+ {[%emt 0:00:47]} 25. Kh1 $2 {[%emt 0:03:47]} (25. Bxe3 Qxb2+ 26. Bf2) 25... Bxd1 {[%emt 0:05:15]} 26. Rxd1 {[%emt 0:00:05]} Nxd1 {[%emt 0:00:06]} (26... Qxd1+ 27. Qxd1 Nxd1 28. Rb8+ Kc7 29. Rxh8 $14) 27. Rb8+ {[%emt 0:00:06]} Kc7 {[%emt 0:00:04] ( -> ...Qe4+)} 28. Rxh8 {[%emt 0:00:06]} Qe4+ {[%emt 0:00:08]} 29. Kg1 {[%emt 0:00:06]} Qe1+ {[%emt 0:00:07]} 30. Kg2 {[%emt 0:00:06]} Qf2+ {[%emt 0:00:04]} 31. Kh3 {[%emt 0:00:07]} Qf1+ {[%emt 0:00:03]} 32. Kg4 {[%emt 0:00:14]} f5+ {[%emt 0:00:07]} 0-1

[Event "LEM Niedersachsen-Meister 2025"]
[Site "Verden"]
[Date "2025.01.02"]
[Round "2.8"]
[White "Wilmink, Anna"]
[Black "von Mettenheim, Johannes"]
[Result "0-1"]
[ECO "C41"]
[WhiteElo "2033"]
[BlackElo "2333"]
[Annotator "TA"]
[PlyCount "72"]
[EventDate "2024.12.27"]
[EventType "swiss"]
[EventCountry "GER"]
[SourceTitle "playchess.com"]
[Source "ChessBase"]
[SourceQuality "1"]
[TimeControl "40/5400+30:1800+30"]

{[%evp 13,72,3,16,0,0,0,0,-18,-19,-55,-55,-82,-96,-163,-119,-139,-101,-109,-31,-46,-45,-31,-36,-40,-41,-72,-44,-45,-25,-43,-40,-39,-29,-64,-52,-167,-172,-240,-190,-184,-166,-185,-158,-247,-225,-235,-237,-242,-227,-298,-193,-183,-174,-236,-154,-549,-548,-29991,-1324,-1252,-1219]} 1. e4 {[%emt 0:00:02]} d6 {[%emt 0:02:14]} 2. d4 {[%emt 0:01:57]} Nf6 {[%emt 0:00:05]} 3. Nc3 {[%emt 0:00:38]} e5 {[%emt 0:00:04]} 4. Nf3 {[%emt 0:01:08]} Nbd7 {[%emt 0:00:05]} 5. Bc4 {[%emt 0:02:07]} Be7 {[%emt 0:00:25]} 6. O-O {[%emt 0:01:43]} O-O {[%emt 0:00:06]} 7. Qe2 {[%emt 0:01:41]} c6 {[%emt 0:00:06]} 8. Bb3 {[%emt 0:01:35]} exd4 {[%emt 0:08:03]} 9. Nxd4 {[%emt 0:00:24]} Nc5 {[%emt 0:00:06]} 10. Re1 {[%emt 0:16:50]} Re8 {[%emt 0:04:05]} 11. f3 {[%emt 0:04:42]} (11. Qf3 {seems wilder.} Bg4 12. Qf4 Bd7 13. Be3) 11... d5 {[%emt 0:17:06]} 12. Qf2 {[%emt 0:04:20]} dxe4 {[%emt 0:04:45]} 13. fxe4 {[%emt 0:09:53]} (13. Nxe4 $17 {is a better defense.} Nfxe4 14. fxe4 Nxb3 15. axb3) 13... Nxb3 {[%emt 0:01:44]} 14. Nxb3 {[%emt 0:00:18]} Bd6 {[%emt 0:09:08]} 15. h3 {[%emt 0:07:16] Prevents Ng4.} Nh5 {[%emt 0:03:43] Prevents Bf4} (15... Qc7 $17 {...Bg3 would now be deadly.} 16. Qf3 Nd5) 16. Qf3 $15 {[%emt 0:02:40]} Qh4 {[%emt 0:02:27]} 17. Be3 {[%emt 0:03:31]} Nf6 {[%emt 0:01:33]} 18. Bf2 {[%emt 0:04:14]} Qg5 {[%emt 0:00:55]} (18... Qf4 {simplifies} 19. Qxf4 Bxf4 20. Rad1 b6) 19. Bd4 {[%emt 0:07:02]} Nh5 {[%emt 0:04:51] Black is more active.} 20. Rad1 {[%emt 0:03:44][%cal Oe4e5]} Bg3 {[%emt 0:01:49][%cal Oc8h3] The board is on fire.} 21. Be3 {[%emt 0:03:38]} Qg6 {[%emt 0:02:47][%cal Oc8h3]} 22. Bf2 {[%emt 0:01:44]} Bc7 {[%emt 0:01:12]} 23. Be3 {[%emt 0:03:18]} f5 {[%emt 0:05:19]} 24. exf5 {[%emt 0:07:29]} (24. e5 $15) 24... Bxf5 $19 {[%emt 0:00:07][%cal Oc7g3]} 25. Bc5 {[%emt 0:01:48]} (25. Nd4 $142 Bd7 (25... Bxc2 $2 26. Nxc2 Re5 27. Rf1 $18) 26. g4) 25... Nf4 {[%emt 0:03:24]} 26. Kh1 {[%emt 0:02:45]} Bxc2 {[%emt 0:01:12]} 27. Rxe8+ {[%emt 0:01:05]} Rxe8 {[%emt 0:00:52]} 28. Rf1 {[%emt 0:00:25]} (28. Rd7 $17 Ne6 (28... Re1+ 29. Kh2 $11) 29. Bg1) 28... Bd3 {[%emt 0:00:32]} 29. Rd1 {[%emt 0:01:16]} Bf5 {[%emt 0:06:57][%cal Of4g2] A strong pair of Bishops.} 30. Nd4 {[%emt 0:02:35][%cal Od4f5]} Bc8 {[%emt 0:00:17][%cal Of4g2]} 31. Nde2 {[%emt 0:01:21]} Nxe2 {[%emt 0:02:15]} 32. Nxe2 {[%emt 0:00:13]} b6 {[%emt 0:00:41]} 33. Bb4 {[%emt 0:01:49]} (33. Bg1 $142) 33... Qe4 $40 {[%emt 0:00:47][%mdl 128] Black wants a kill.} 34. Qb3+ $2 {[%emt 0:01:41]} (34. Qxe4 $17 {was the crucial defense.} Rxe4 35. Bd6 Bxd6 (35... Rxe2 36. Bxc7 Bf5 37. a4 $19) 36. Rxd6 Rxe2 37. Rd8+ Kf7 38. Rxc8 Rxb2 39. Rc7+ Ke6 40. Rxg7) 34... Be6 {[%emt 0:00:14]} 35. Nc3 {[%emt 0:00:17]} Bxb3 {[%emt 0:00:16]} (35... Qf4 $142 36. Kg1 Qe3+ (36... Bxb3 {leads to mate.} 37. Rf1 Qh2+ 38. Kf2 Bc4 39. Bd6 Qxd6 40. Ne4 Qd4+ 41. Kf3 Qxe4+ 42. Kf2 Qe3#) 37. Kh1 Bxb3 38. Bd6 Bxd6 (38... Bxd1 39. Bxc7 Bf3 40. Bg3 Qc1+ 41. Nd1 Qxd1+ 42. Kh2 Qe2 43. Bf2 Qxf2 44. Kh1 Qxg2#) (38... Qe1+ $2 39. Rxe1 Rxe1+ 40. Kh2 $19) 39. Rxd6 Qc1+ 40. Rd1 Bxd1 (40... Re1+ $2 41. Rxe1 Qxe1+ 42. Kh2 $19) 41. h4 Re1+ 42. Kh2 Qf4+ (42... Qxb2 43. Nxd1 Qe5+ 44. Kh3 Qf4 45. g3 Rh1+ 46. Kg2 Qf1#) 43. g3 Qf2+ 44. Kh3 Rh1#) 36. Nxe4 {[%emt 0:00:09]} Bxd1 {[%emt 0:00:05]} 0-1

[Event "LEM Niedersachsen-Meister 2025"]
[Site "Verden"]
[Date "2025.01.02"]
[Round "2.9"]
[White "Mueer, Sebastian"]
[Black "Voege, Tobias"]
[Result "0-1"]
[ECO "A40"]
[WhiteElo "2175"]
[BlackElo "2292"]
[Annotator "TA"]
[PlyCount "98"]
[EventDate "2024.12.27"]
[EventType "swiss"]
[EventCountry "GER"]
[SourceTitle "playchess.com"]
[Source "ChessBase"]
[SourceQuality "1"]
[TimeControl "40/5400+30:1800+30"]

1. d4 {[%emt 0:08:15]} e6 {[%emt 0:00:21]} 2. c4 {[%emt 0:00:32]} b6 {[%emt 0:00:53]} 3. e4 {[%emt 0:01:36]} Bb7 {[%emt 0:00:31]} 4. Nc3 {[%emt 0:05:50]} Bb4 {[%emt 0:00:19]} 5. Bd3 {[%emt 0:00:38]} f5 {[%emt 0:00:48]} 6. Qh5+ {[%emt 0:01:02]} g6 {[%emt 0:00:05]} 7. Qe2 {[%emt 0:00:06]} Nf6 {[%emt 0:01:42]} 8. f3 {[%emt 0:03:13] A40: Unusual replies to 1 d4.} (8. exf5 Bxg2 (8... Bxc3+ 9. bxc3 Bxg2 10. fxg6 $17) 9. fxg6 Qe7 $19 (9... Bxh1 $2 10. Bg5 $17)) (8. Bg5 $5 fxe4 (8... Bxc3+ 9. bxc3 fxe4 10. Bc2 $11) 9. Bxe4 Bxe4 10. Bxf6 Qxf6 $11) 8... Nc6 {[%emt 0:00:52]} 9. Be3 {[%emt 0:06:04]} fxe4 {[%emt 0:01:29]} 10. fxe4 {[%emt 0:01:04]} e5 {[%emt 0:00:12]} 11. d5 {[%emt 0:16:58]} Nd4 {[%emt 0:00:16]} 12. Qd2 {[%emt 0:02:08]} Ng4 {[%emt 0:07:24]} 13. Bg5 {[%emt 0:12:05]} Be7 {[%emt 0:00:34]} 14. Bxe7 {[%emt 0:01:37]} Qxe7 {[%emt 0:00:06]} 15. O-O-O {[%emt 0:12:57]} O-O {[%emt 0:02:24]} 16. Nh3 {[%emt 0:03:51]} Qh4 $146 {[%emt 0:04:20]} ({Predecessor:} 16... d6 17. Rde1 Qh4 18. Nd1 Bc8 19. Ref1 Rxf1 20. Rxf1 Nxh2 21. Rh1 Qg3 22. Ng5 Bd7 23. Qe3 Qh4 24. g3 Qh6 25. Qd2 {1-0 Fateev,M (2068)-Churkin,V (2310) St Petersburg op 2007 (6)}) 17. Qe1 {[%emt 0:05:03] [#]} Qxe1 $1 {[%emt 0:09:37]} 18. Rdxe1 {[%emt 0:00:13]} Ba6 {[%emt 0:12:18]} 19. Nd1 {[%emt 0:01:59]} Kg7 {[%emt 0:07:06]} 20. Ne3 {[%emt 0:01:31]} h5 {[%emt 0:00:45]} 21. Kb1 {[%emt 0:05:11]} ({White should try} 21. Nxg4 $15 hxg4 22. Ng5) 21... Rf6 {[%emt 0:01:50]} 22. Nc2 {[%emt 0:00:46]} (22. Nxg4 $142 hxg4 23. Ng1) 22... Nxc2 {[%emt 0:03:46]} 23. Kxc2 {[%emt 0:00:13]} Raf8 {[%emt 0:00:32]} 24. Kd2 {[%emt 0:02:02]} Kh6 {[%emt 0:01:12]} 25. b3 {[%emt 0:01:53]} Bc8 {[%emt 0:03:09]} 26. Be2 {[%emt 0:01:54]} d6 {[%emt 0:40:59]} 27. Bf3 {[%emt 0:00:27]} g5 {[%emt 0:00:00]} 28. Re2 {[%emt 0:01:26]} Kg6 {[%emt 0:00:00]} 29. Ng1 {[%emt 0:02:36] [#]} Nh6 $1 {[%emt 0:00:00]} 30. Re3 {[%emt 0:00:43]} g4 {[%emt 0:00:00]} 31. Be2 {[%emt 0:00:55]} (31. Bd1 $17) 31... Rf2 $19 {[%emt 0:00:00]} 32. g3 {[%emt 0:00:35]} Rg2 {[%emt 0:00:00]} 33. b4 $2 {[%emt 0:00:45]} (33. Ke1) 33... Rf1 $19 {[%emt 0:00:00]} 34. Ra3 {[%emt 0:00:39]} a6 {[%emt 0:00:00]} (34... Rfxg1 35. Rxg1 Rxg1 36. Rxa7 $15) 35. c5 {[%emt 0:00:30]} dxc5 {[%emt 0:00:00]} (35... Rfxg1 36. Rxg1 Rxg1 37. cxd6 cxd6 38. b5 axb5 39. Kd3 $19) 36. bxc5 {[%emt 0:00:06]} b5 {[%emt 0:00:00]} (36... Rfxg1 37. Rxg1 Rxg1 38. Bxa6 Bxa6 39. Rxa6 $17) 37. Rb3 {[%emt 0:00:31]} Nf7 {[%emt 0:00:00]} 38. Ke3 {[%emt 0:00:47]} Re1 {[%emt 0:00:00]} 39. a4 {[%emt 0:00:18]} bxa4 {[%emt 0:00:00]} 40. Rb8 {[%emt 0:00:01]} a3 {[%emt 0:00:00]} (40... Rexg1 41. Rxg1 Rxg1 42. Rxc8 $11) 41. Kd2 {[%emt 0:31:14]} a2 {[%emt 0:20:00]} 42. Kxe1 {[%emt 0:00:02]} a1=Q+ {[%emt 0:00:14]} (42... a1=B $2 {too greedy.} 43. Kf1 (43. Rxc8 Bd4 $18) 43... Rxe2 44. Nxe2 $18) 43. Bd1 {[%emt 0:00:04]} Qc3+ {[%emt 0:01:27]} 44. Kf1 {[%emt 0:00:02]} Qd2 {[%emt 0:00:20]} 45. Be2 {[%emt 0:00:17]} Rxe2 {[%emt 0:00:20]} 46. Nxe2 {[%emt 0:00:27]} Qd1+ {[%emt 0:00:09]} (46... Ng5 $142 47. Rb1 Qd3 (47... Nxe4 $2 48. Rg1 $19) 48. Rb4 Qf3+ (48... Nxe4 $2 49. Rxe4 Qf3+ 50. Kg1 $19) 49. Ke1 Qxh1+ 50. Kf2 Nxe4+ (50... Qxh2+ $2 51. Ke3 $19) 51. Rxe4 Qf3+ (51... Qxe4 $2 52. Ng1 $19) (51... Qxh2+ $2 52. Ke3 $19) 52. Ke1 Qxe4 53. d6 cxd6 54. c6 Qxc6 55. Kd2 Bf5 56. Nc3 Qc5 57. Ne2 Qc2+ 58. Ke3 Bd3 59. Nd4 exd4+ 60. Kxd4 Bc4 (60... Qc4+ {is a self mate.} 61. Ke3 Qc3 62. Kf2 Qd2+ 63. Kg1 Qe1+ 64. Kg2 Qf1#) 61. Ke3 Qe2+ 62. Kf4 Qf3#) 47. Kf2 $19 {[%emt 0:00:12]} Qxh1 {[%emt 0:00:11]} 48. Rxc8 {[%emt 0:00:06]} Ng5 {[%emt 0:00:42]} 49. Rg8+ {[%emt 0:02:19]} Kh6 {[%emt 0:00:08]} 0-1

[Event "LEM Niedersachsen-Meister 2025"]
[Site "Verden"]
[Date "2025.01.02"]
[Round "2.10"]
[White "Pubantz, Jan"]
[Black "Sreyas Payyappat"]
[Result "1/2-1/2"]
[ECO "A62"]
[WhiteElo "2339"]
[BlackElo "2115"]
[Annotator "TA"]
[PlyCount "40"]
[EventDate "2024.12.27"]
[EventType "swiss"]
[EventCountry "GER"]
[SourceTitle "playchess.com"]
[Source "ChessBase"]
[SourceQuality "1"]
[TimeControl "40/5400+30:1800+30"]

{[%evp 18,40,40,21,19,0,0,0,29,0,0,0,2,18,22,30,24,11,33,0,19,0,29,0,0]} 1. d4 {[%emt 0:00:09]} Nf6 {[%emt 0:00:05]} 2. c4 {[%emt 0:00:03]} c5 {[%emt 0:00:05]} 3. d5 {[%emt 0:00:06]} e6 {[%emt 0:00:06]} 4. Nc3 {[%emt 0:00:04]} exd5 {[%emt 0:00:04]} 5. cxd5 {[%emt 0:00:04]} d6 {[%emt 0:00:04]} 6. g3 {[%emt 0:00:55]} g6 {[%emt 0:00:06]} 7. Bg2 {[%emt 0:00:03]} Bg7 {[%emt 0:00:06]} 8. Nf3 {[%emt 0:00:01]} O-O {[%emt 0:00:06][%cal Bh8f8,Bf8e8,Be8e2][%mdl 32]} 9. O-O {[%emt 0:00:04]} Re8 {[%emt 0:00:03]} 10. Bf4 {[%emt 0:00:05]} Bf5 {[%emt 0:00:06]} 11. Nh4 {[%emt 0:00:49]} Bg4 {[%emt 0:00:09][%cal Ob7b5]} 12. Qd2 {[%emt 0:00:46]} b5 {[%emt 0:00:18]} 13. Nxb5 {[%emt 0:03:20]} Rxe2 {[%emt 0:00:19]} 14. Qc1 $1 {[%emt 0:01:37][%cal Oh2h3] Strongly threatening h3!.} Ne4 {[%emt 0:00:21]} 15. Bxe4 {[%emt 0:21:42]} Rxe4 {[%emt 0:01:51]} 16. Nxd6 {[%emt 0:11:57]} Re7 {[%emt 0:00:34]} 17. Nc4 {[%emt 0:30:08]} Re8 {[%emt 0:00:05]} 18. Nd6 {[%emt 0:06:34] Excellent horsemanship.} Re7 {[%emt 0:00:58]} 19. Nc4 {[%emt 0:00:59]} (19. Qxc5 $5 Nd7 20. Qa3 $11) 19... Re8 {[%emt 0:00:06]} 20. Nd6 {[%emt 0:01:55]} Re7 {[%emt 0:02:52]} 1/2-1/2

[Event "LEM Niedersachsen-Meister 2025"]
[Site "Verden"]
[Date "2025.01.02"]
[Round "2.11"]
[White "Knuedel, Torben"]
[Black "Celik, Abdullah"]
[Result "1-0"]
[ECO "B95"]
[WhiteElo "2308"]
[BlackElo "2032"]
[Annotator "TA"]
[PlyCount "43"]
[EventDate "2024.12.27"]
[EventType "swiss"]
[EventCountry "GER"]
[SourceTitle "playchess.com"]
[Source "ChessBase"]
[SourceQuality "1"]
[TimeControl "40/5400+30:1800+30"]

{[%evp 15,43,0,-3,0,12,6,87,95,91,77,164,161,247,250,241,242,357,364,364,367,1197,1235,1243,1236,1227,1197,1139,936,29982,6091]} 1. e4 {[%emt 0:00:03]} c5 {[%emt 0:00:05]} 2. Nf3 {[%emt 0:00:26]} d6 {[%emt 0:00:06]} 3. d4 {[%emt 0:00:07]} cxd4 {[%emt 0:00:05]} 4. Nxd4 {[%emt 0:00:04]} Nf6 {[%emt 0:00:03]} 5. Nc3 {[%emt 0:00:07]} a6 {[%emt 0:00:02]} 6. Bg5 {[%emt 0:00:05]} e6 {[%emt 0:00:03]} 7. Qf3 {[%emt 0:00:41]} Nbd7 {[%emt 0:03:13]} 8. O-O-O {[%emt 0:02:18]} Qc7 {[%emt 0:05:17]} 9. a3 {[%emt 0:03:36]} h6 {[%emt 0:03:13]} 10. Bxf6 {[%emt 0:01:05]} gxf6 {[%emt 0:01:40]} (10... Nxf6 $11 {remains equal.} 11. g4 Be7) 11. Qh5 $16 {[%emt 0:06:29]} Nb6 {[%emt 0:08:09]} 12. f4 {[%emt 0:06:23] White has more active pieces.} d5 {[%emt 0:14:31]} 13. exd5 $18 {[%emt 0:10:45]} Qxf4+ {[%emt 0:00:41]} (13... Bxa3 $142 14. Kb1 (14. Nxe6 $2 Qxc3 $19) (14. dxe6 Bxe6 15. Qf3 Rc8 $16) 14... exd5) 14. Kb1 {[%emt 0:00:29]} Qg5 {[%emt 0:04:55]} 15. Qf3 {[%emt 0:06:41]} Nxd5 {[%emt 0:13:27]} (15... e5 $142) 16. Nxd5 {[%emt 0:02:18]} Qxd5 {[%emt 0:00:03]} 17. Qxf6 {[%emt 0:02:53]} Rg8 $2 {[%emt 0:12:31] [#]} (17... Rh7 18. Bb5+ axb5) 18. Bb5+ $1 {[%emt 0:04:17][%mdl 512]} axb5 {[%emt 0:07:19] [#]} 19. Nxb5 $1 {[%emt 0:01:27][%mdl 512] Hoping for Nc7+.} Be7 {[%emt 0:04:27]} 20. Nc7+ {[%emt 0:00:17]} (20. Qxh6 $2 {perishes.} Qxb5 21. Rd3 Qg5 (21... Rxa3 $2 22. Qh7 $19) (21... Bxa3 $2 22. Rb3 $19) 22. Qxg5 Rxg5 $19) 20... Kd8 {[%emt 0:01:26]} 21. Nxd5 {[%emt 0:01:38]} exd5 {[%emt 0:01:38]} 22. Qxf7 {[%emt 0:00:17]} 1-0